bitfinex-derivatives/quotes_BTCF0:USTF0_20241109
["timestamp","ask_amount","ask_price","bid_price","bid_amount"]
[1731158463209,0.065463,76337.0,76336.0,0.11773957]
[1731158463506,0.065463,76337.0,76336.0,0.065463]
[1731158463709,0.065463,76337.0,76336.0,0.11773951]
[1731158464412,0.065463,76337.0,76336.0,0.11774214]
[1731158465118,0.065463,76337.0,76336.0,0.13089446]
[1731158465412,0.065463,76337.0,76336.0,0.21787047]
[1731158466310,0.065463,76337.0,76336.0,0.15243901]
[1731158467409,0.4132783,76344.0,76336.0,0.08697601]
[1731158467610,0.0061,76347.0,76341.0,0.06536583]
[1731158467815,0.426242,76361.0,76341.0,0.06536583]
[1731158467816,0.065453,76348.0,76347.0,0.065454]
[1731158468004,0.065453,76348.0,76347.0,0.11774332]
[1731158468509,0.065453,76348.0,76347.0,0.065454]
[1731158468700,0.0061,76357.0,76346.0,0.3608]
[1731158469011,0.05912858,76357.0,76352.0,0.06545]
[1731158469203,0.05912858,76357.0,76352.0,0.1177437]
[1731158469399,0.0061,76357.0,76352.0,0.1177437]
[1731158469603,0.0061,76357.0,76352.0,0.06545]
[1731158470014,0.071545,76357.0,76352.0,0.06545]
[1731158472209,0.0061,76357.0,76352.0,0.06545]
[1731158472414,0.0061,76357.0,76356.0,0.065446]
[1731158472710,0.426242,76361.0,76358.0,0.065444]
[1731158472918,0.426242,76361.0,76353.0,0.3608]
[1731158473113,0.426242,76361.0,76359.0,0.065443]
[1731158473516,0.47891991,76361.0,76359.0,0.065443]
[1731158473911,0.41347791,76361.0,76359.0,0.065443]
[1731158474214,0.065443,76360.0,76359.0,0.065443]
[1731158475012,0.065447,76356.0,76354.0,0.065448]
[1731158475215,0.065447,76356.0,76355.0,0.065447]
[1731158488522,0.41495791,76361.0,76358.0,0.065444]
[1731158488731,0.065444,76359.0,76358.0,0.065444]
[1731158494333,0.05267791,76361.0,76355.0,0.05366558]
[1731158494532,0.3608,76363.0,76360.0,0.065443]
[1731158494729,0.41191931,76363.0,76362.0,0.065441]
[1731158496427,0.3608,76363.0,76362.0,0.065441]
[1731158496825,0.0061,76367.0,76362.0,0.05230026]
[1731158497126,0.0061,76367.0,76358.0,0.42616583]
[1731158497127,0.3669,76372.0,76367.0,0.065437]
[1731158497431,0.36830001,76372.0,76367.0,0.065437]
[1731158497631,0.36830001,76372.0,76367.0,0.11774647]
[1731158497819,0.420328,76372.0,76367.0,0.11774647]
[1731158498134,0.36830001,76372.0,76371.0,0.065433]
[1731158498320,0.3608,76372.0,76371.0,0.065433]
[1731158501330,0.0061,76377.0,76376.0,0.065429]
[1731158501521,0.00336459,76379.0,76378.0,0.065427]
[1731158501728,0.00196458,76379.0,76378.0,0.065427]
[1731158502228,0.038,76386.0,76378.0,0.05223508]
[1731158502727,0.038,76386.0,76385.0,0.065421]
[1731158502935,0.0319,76386.0,76385.0,0.065421]
[1731158504532,0.097321,76386.0,76385.0,0.065421]
[1731158505529,0.095821,76386.0,76385.0,0.065421]
[1731158511836,0.095821,76386.0,76376.0,0.3608]
[1731158512145,0.065423,76383.0,76381.0,0.065425]
[1731158512341,0.0304,76386.0,76370.0,0.0061]
[1731158512342,0.3608,76382.0,76370.0,0.0061]
[1731158512648,0.3608,76382.0,76368.0,0.065436]
[1731158512649,0.426232,76373.0,76368.0,0.065436]
[1731158512838,0.065434,76370.0,76364.0,0.065439]
[1731158513033,0.065434,76370.0,76366.0,0.065437]
[1731158513549,0.065434,76370.0,76367.0,0.065437]
[1731158515245,0.065434,76370.0,76361.0,0.3608]
[1731158515541,0.065434,76370.0,76362.0,0.065441]
[1731158515736,0.065434,76370.0,76361.0,0.3608]
[1731158516042,0.065434,76370.0,76360.0,0.0061]
[1731158516043,0.26276849,76370.0,76360.0,0.0061]
[1731158516544,1.00426608,76370.0,76360.0,0.0061]
[1731158517637,0.98436849,76370.0,76360.0,0.0061]
[1731158517940,1.03753908,76370.0,76360.0,0.0061]
[1731158521553,0.065442,76361.0,76360.0,0.0061]
[1731158521839,0.065442,76361.0,76351.0,0.06545]
[1731158521840,0.3608,76361.0,76351.0,0.06545]
[1731158522146,0.0314,76360.0,76351.0,0.06545]
[1731158522648,0.065446,76357.0,76351.0,0.06545]
[1731158523035,0.065447,76355.0,76351.0,0.06545]
[1731158524541,0.065447,76355.0,76352.0,0.065449]
[1731158524844,0.39360001,76360.0,76352.0,0.065449]
[1731158524845,0.0061,76359.0,76352.0,0.065449]
[1731158525045,0.065448,76354.0,76352.0,0.065449]
[1731158527547,0.3608,76357.0,76354.0,0.065447]
[1731158527843,0.065447,76355.0,76347.0,0.15727628]
[1731158528048,0.065447,76355.0,76351.0,0.10456517]
[1731158528236,0.065447,76355.0,76352.0,0.06545]
[1731158530151,0.065449,76353.0,76352.0,0.06545]
[1731158540076,0.11813134,76353.0,76352.0,0.06545]
[1731158544858,0.11813134,76353.0,76352.0,0.15259705]
[1731158547956,0.11813134,76353.0,76352.0,0.06545]
[1731158548958,0.065452,76349.0,76348.0,0.07824827]
[1731158549159,0.065452,76349.0,76348.0,0.14370127]
[1731158549973,0.065452,76349.0,76348.0,0.065453]
[1731158554968,0.065452,76349.0,76348.0,0.1528298]
[1731158555370,0.41274736,76356.0,76348.0,0.0873768]
[1731158555562,0.065448,76354.0,76353.0,0.06545963]
[1731158555872,0.065448,76354.0,76353.0,0.13090863]
[1731158556174,0.065448,76354.0,76353.0,0.21815663]
[1731158558171,0.065448,76354.0,76353.0,0.152697]
[1731158559566,0.065448,76354.0,76353.0,0.15288557]
[1731158560063,0.065448,76354.0,76353.0,0.065449]
[1731158560969,0.065448,76354.0,76353.0,0.13090862]
[1731158563077,0.065448,76354.0,76353.0,0.065449]
[1731158567171,0.05194736,76356.0,76351.0,0.42693962]
[1731158567374,0.0314,76360.0,76355.0,0.065447]
[1731158567679,0.065446,76356.0,76355.0,0.065447]
[1731158568281,0.08286064,76360.0,76352.0,0.06545962]
[1731158568282,0.0314,76360.0,76352.0,0.06545962]
[1731158568477,0.0314,76360.0,76359.0,0.065444]
[1731158569375,0.0314,76360.0,76359.0,0.11780772]
[1731158570175,0.0314,76360.0,76359.0,0.13090362]
[1731158570368,0.0314,76360.0,76359.0,0.065444]
[1731158570876,0.065435,76369.0,76366.0,0.065438]
[1731158571076,0.41328109,76367.0,76366.0,0.065438]
[1731158574372,0.41328109,76367.0,76366.0,0.11775596]
[1731158575585,0.41328109,76367.0,76366.0,0.065438]
[1731158575882,0.47871809,76367.0,76366.0,0.065438]
[1731158576982,0.11791809,76367.0,76366.0,0.065438]
[1731158586494,0.065439,76365.0,76364.0,0.065439]
[1731158587388,0.41394404,76371.0,76363.0,0.05231796]
[1731158587592,0.41394404,76371.0,76367.0,0.10467374]
[1731158587593,0.41250404,76371.0,76367.0,0.10467374]
[1731158587890,0.41250404,76371.0,76367.0,0.065436]
[1731158587891,0.065436,76368.0,76367.0,0.065436]
[1731158596401,0.065436,76368.0,76367.0,0.10467664]
[1731158596998,0.05170404,76371.0,76366.0,0.03924064]
[1731158597203,0.065435,76370.0,76369.0,0.065435]
[1731158601905,0.065435,76370.0,76369.0,0.11779045]
[1731158606609,0.065435,76370.0,76369.0,0.065435]
[1731158608107,0.065435,76370.0,76369.0,0.10469813]
[1731158609406,0.065435,76370.0,76369.0,0.065435]
[1731158611211,0.065435,76370.0,76369.0,0.10469665]
[1731158612709,0.065435,76370.0,76369.0,0.065435]
[1731158613103,0.065435,76370.0,76369.0,0.10469754]
[1731158615217,0.065435,76370.0,76369.0,0.065435]
[1731158625220,0.05147986,76372.0,76366.0,0.06544028]
[1731158625421,0.0061,76374.0,76373.0,0.065432]
[1731158625618,0.39400001,76375.0,76374.0,0.065431]
[1731158625826,0.3926,76375.0,76374.0,0.11779574]
[1731158626420,0.3926,76375.0,76374.0,0.065431]
[1731158626615,0.0318,76375.0,76374.0,0.065431]
[1731158631419,0.0318,76375.0,76374.0,0.10467016]
[1731158633923,0.0318,76375.0,76374.0,0.065431]
[1731158635529,0.09723,76375.0,76374.0,0.065431]
[1731158641336,0.09723,76375.0,76374.0,0.11773752]
[1731158641731,0.09723,76375.0,76374.0,0.065431]
[1731158642125,0.0061,76381.0,76374.0,0.3608]
[1731158642322,0.11673744,76382.0,76381.0,0.065423]
[1731158642535,0.065424,76382.0,76381.0,0.065423]
[1731158646447,0.11727055,76382.0,76381.0,0.065423]
[1731158651539,0.11727055,76382.0,76381.0,0.1177266]
[1731158652944,0.05184655,76382.0,76381.0,0.1177266]
[1731158653144,0.0322,76386.0,76381.0,0.0523036]
[1731158653347,0.065422,76385.0,76384.0,0.065421]
[1731158654039,0.13834217,76385.0,76384.0,0.065421]
[1731158667158,0.13834217,76385.0,76384.0,0.11773744]
[1731158670145,0.21126234,76385.0,76384.0,0.05231644]
[1731158670352,0.408936,76385.0,76384.0,0.05231644]
[1731158670547,0.408936,76385.0,76384.0,0.00241644]
[1731158670757,0.065428,76377.0,76376.0,0.06539555]
[1731158671053,0.49914817,76377.0,76376.0,0.06539555]
[1731158672164,0.43372017,76377.0,76373.0,0.065431]
[1731158672464,0.07292017,76374.0,76373.0,0.065431]
[1731158672651,0.13835117,76374.0,76373.0,0.065431]
[1731158675058,0.14584034,76374.0,76366.0,0.03925573]
[1731158675358,0.3608,76377.0,76365.0,0.065438]
[1731158675359,0.065438,76366.0,76365.0,0.065438]
[1731158675759,0.13835817,76366.0,76365.0,0.065438]
[1731158680466,0.18974655,76366.0,76365.0,0.065438]
[1731158682160,0.18974655,76366.0,76365.0,0.10462165]
[1731158682668,0.18974655,76366.0,76365.0,0.065438]
[1731158682669,0.55054655,76366.0,76365.0,0.065438]
[1731158683961,0.18974655,76366.0,76365.0,0.065438]
[1731158684159,0.55054655,76366.0,76365.0,0.065438]
[1731158684667,0.06544,76363.0,76362.0,0.065441]
[1731158684963,0.06544,76363.0,76353.0,0.0080643]
[1731158684964,0.065442,76361.0,76357.0,0.065445]
[1731158685166,0.41362838,76366.0,76360.0,0.03917355]
[1731158685468,0.065445,76358.0,76357.0,0.10461855]
[1731158685663,0.13836517,76358.0,76357.0,0.10461855]
[1731158685864,0.13836517,76358.0,76354.0,0.39192]
[1731158685865,0.065447,76355.0,76354.0,0.39192]
[1731158686055,0.13836717,76355.0,76354.0,0.3912]
[1731158686571,0.065447,76355.0,76354.0,0.3912]
[1731158689974,0.13836717,76355.0,76354.0,0.456648]
[1731158697979,0.13836717,76355.0,76354.0,0.49582828]
[1731158698493,0.13836717,76355.0,76354.0,0.456648]
[1731158700281,0.13836717,76355.0,76354.0,0.095848]
[1731158701378,0.07292017,76355.0,76354.0,0.095848]
[1731158701577,0.05156398,76362.0,76361.0,0.065442]
[1731158701784,0.05156398,76362.0,76361.0,0.1046541]
[1731158701975,0.05156398,76362.0,76361.0,0.065442]
[1731158702681,0.07292017,76364.0,76363.0,0.06544]
[1731158707687,0.13835917,76364.0,76363.0,0.06544]
[1731158711773,0.19071895,76364.0,76363.0,0.06544]
[1731158714286,0.13835917,76364.0,76363.0,0.06544]
[1731158716282,0.065444,76360.0,76359.0,0.065443]
[1731158716487,0.13836417,76360.0,76359.0,0.065443]
[1731158717279,0.065444,76360.0,76359.0,0.065443]
[1731158717485,0.13836417,76360.0,76359.0,0.065443]
[1731158719889,0.06544,76364.0,76359.0,0.08614801]
[1731158720192,0.06544,76364.0,76363.0,0.06544]
[1731158720693,0.3608,76368.0,76355.0,0.42620288]
[1731158720896,0.426236,76368.0,76367.0,0.065437]
[1731158722095,0.49915617,76368.0,76367.0,0.065437]
[1731158722293,0.07292017,76368.0,76367.0,0.03924299]
[1731158722482,0.07292017,76368.0,76367.0,0.065437]
[1731158724788,0.065432,76373.0,76372.0,0.065433]
[1731158725694,0.07292017,76373.0,76372.0,0.065433]
[1731158726490,0.07292017,76373.0,76372.0,0.10466039]
[1731158726798,0.07292017,76373.0,76372.0,0.065433]
[1731158727387,0.07292017,76373.0,76372.0,0.10465555]
[1731158727588,0.07292017,76373.0,76372.0,0.065433]
[1731158730697,0.07292017,76373.0,76372.0,0.11772387]
[1731158731287,0.3608,76377.0,76373.0,0.065432]
[1731158731494,0.0748847,76374.0,76373.0,0.11772287]
[1731158732093,0.0748847,76374.0,76373.0,0.065432]
[1731158733390,0.0748847,76374.0,76373.0,0.117712]
[1731158735202,0.0748847,76374.0,76373.0,0.065432]
[1731158737298,0.0748847,76374.0,76373.0,0.11769742]
[1731158737507,0.07292017,76374.0,76373.0,0.11769742]
[1731158738401,0.07292017,76374.0,76373.0,0.065432]
[1731158738597,0.07292017,76374.0,76373.0,0.11769742]
[1731158739297,0.07292017,76374.0,76373.0,0.065432]
[1731158740990,0.07292017,76374.0,76373.0,0.11769742]
[1731158742199,0.07292017,76374.0,76373.0,0.065432]
[1731158743304,0.07292017,76374.0,76373.0,0.10463178]
[1731158744303,0.07292017,76374.0,76373.0,0.065432]
[1731158746508,0.07292017,76374.0,76373.0,0.11691552]
[1731158748201,0.07292017,76374.0,76373.0,0.16918189]
[1731158748402,0.07292017,76374.0,76373.0,0.11691552]
[1731158748905,0.07292017,76374.0,76373.0,0.16918189]
[1731158749206,0.065428,76377.0,76373.0,0.05148352]
[1731158749415,0.065428,76377.0,76376.0,0.065429]
[1731158750115,0.065428,76377.0,76376.0,0.10465949]
[1731158750413,0.065428,76377.0,76376.0,0.065429]
[1731158758316,0.065428,76377.0,76376.0,0.11778297]
[1731158762022,0.13834817,76377.0,76376.0,0.11778297]
[1731158765322,0.13834817,76377.0,76376.0,0.21610181]
[1731158765825,0.065428,76377.0,76376.0,0.21610181]
[1731158766223,0.06543,76375.0,76374.0,0.06540288]
[1731158766522,0.06543,76375.0,76374.0,0.065431]
[1731158766523,0.13835017,76375.0,76374.0,0.065431]
[1731158769023,0.06543,76375.0,76374.0,0.065431]
[1731158769227,0.13835017,76375.0,76374.0,0.065431]
[1731158770219,0.06543,76375.0,76374.0,0.065431]
[1731158770728,0.13835017,76375.0,76374.0,0.065431]
[1731158771720,0.07292017,76375.0,76374.0,0.065431]
[1731158774427,0.39350001,76383.0,76374.0,0.065431]
[1731158774732,0.0313,76383.0,76382.0,0.10469109]
[1731158775035,0.08283475,76383.0,76382.0,0.10469109]
[1731158775221,0.0313,76383.0,76382.0,0.10468436]
[1731158775626,0.096723,76383.0,76382.0,0.10468436]
[1731158775929,0.16964317,76383.0,76382.0,0.10468436]
[1731158776132,0.16964317,76383.0,76382.0,0.065424]
[1731158779547,0.16964317,76383.0,76382.0,0.10468436]
[1731158779742,0.16964317,76383.0,76382.0,0.065424]
[1731158780426,0.16964317,76383.0,76382.0,0.11778012]
[1731158782146,0.13834317,76383.0,76382.0,0.11778012]
[1731158782440,0.07292017,76383.0,76382.0,0.11778012]
[1731158782645,0.0524147,76384.0,76382.0,0.05235612]
[1731158782942,0.065421,76386.0,76382.0,0.05235612]
[1731158783145,0.065421,76386.0,76384.0,0.065422]
[1731158783536,0.065421,76386.0,76382.0,0.05235612]
[1731158783537,0.065421,76386.0,76385.0,0.065421]
[1731158784631,0.13834117,76386.0,76385.0,0.065421]
[1731158785033,0.065421,76386.0,76385.0,0.065421]
[1731158785231,0.13834117,76386.0,76385.0,0.065421]
[1731158786834,0.07292017,76387.0,76383.0,0.05235612]
[1731158787034,0.07292017,76387.0,76386.0,0.065421]
[1731158787827,0.07292017,76387.0,76386.0,0.11777712]
[1731158788528,0.07292017,76387.0,76386.0,0.065421]
[1731158788959,0.05117927,76391.0,76390.0,0.065417]
[1731158789237,0.05117927,76391.0,76390.0,0.10464137]
[1731158789238,0.07292017,76391.0,76390.0,0.10464137]
[1731158789539,0.07292017,76391.0,76390.0,0.065417]
[1731158790339,0.11842734,76393.0,76392.0,0.065415]
[1731158790638,0.19134751,76393.0,76392.0,0.065415]
[1731158794345,0.11842734,76393.0,76392.0,0.065415]
[1731158794539,0.19134751,76393.0,76392.0,0.065415]
[1731158796045,0.12593251,76393.0,76384.0,0.03922437]
[1731158796341,0.07292017,76385.0,76382.0,0.46544737]
[1731158796534,0.0905,76384.0,76382.0,0.0392007]
[1731158796732,0.28744672,76384.0,76374.0,0.0392007]
[1731158796935,0.28744672,76384.0,76373.0,0.065431]
[1731158796936,0.065431,76374.0,76373.0,0.065431]
[1731158797138,0.065431,76374.0,76373.0,0.1046317]
[1731158797544,0.13835117,76374.0,76373.0,0.065431]
[1731158800050,0.065431,76374.0,76373.0,0.065431]
[1731158800443,0.13835117,76374.0,76373.0,0.065431]
[1731158806443,0.065431,76374.0,76373.0,0.065431]
[1731158806648,0.065431,76374.0,76370.0,0.06736681]
[1731158806649,0.3608,76376.0,76375.0,0.06543]
[1731158806851,0.43372017,76376.0,76375.0,0.11769375]
[1731158807857,0.49914917,76376.0,76375.0,0.11769375]
[1731158808652,0.13834917,76376.0,76375.0,0.05226375]
[1731158810453,0.13834917,76376.0,76373.0,0.03919287]
[1731158812055,0.13834917,76376.0,76375.0,0.03919287]
[1731158818462,0.13834917,76376.0,76375.0,0.05226375]
[1731158818764,0.13834917,76376.0,76374.0,0.05226375]
[1731158819259,0.13834917,76376.0,76375.0,0.05226375]
[1731158820755,0.065431,76374.0,76373.0,0.065432]
[1731158820952,0.065431,76374.0,76373.0,0.11769669]
[1731158821863,0.065431,76374.0,76373.0,0.05226469]
[1731158822161,0.065432,76373.0,76372.0,0.05227109]
[1731158822462,0.065433,76372.0,76371.0,0.05227109]
[1731158824261,0.065433,76371.0,76370.0,0.00196393]
[1731158825460,0.065433,76371.0,76370.0,0.06736681]
[1731158826256,0.065433,76371.0,76370.0,0.08808824]
[1731158826455,0.065433,76371.0,76370.0,0.08809045]
[1731158830974,0.065433,76371.0,76370.0,0.06739206]
[1731158833576,0.065433,76371.0,76370.0,0.00196393]
[1731158835572,0.11724121,76371.0,76370.0,0.00196393]
[1731158839680,0.47804121,76371.0,76370.0,0.00196393]
[1731158841573,0.47804121,76371.0,76370.0,0.0412031]
[1731158841777,0.47804121,76371.0,76370.0,0.00196393]
[1731158843972,0.47804121,76371.0,76370.0,0.05430081]
[1731158846082,0.065429,76377.0,76376.0,0.065429]
[1731158853086,0.065429,76377.0,76376.0,0.10468209]
[1731158854580,0.13834917,76377.0,76376.0,0.10468209]
[1731158855787,0.13834917,76377.0,76376.0,0.065429]
[1731158857988,0.13834917,76377.0,76376.0,0.1046788]
[1731158858894,0.13834917,76377.0,76376.0,0.065429]
[1731158859481,0.13834917,76377.0,76376.0,0.10467789]
[1731158859683,0.13834917,76377.0,76376.0,0.065429]
[1731158860580,0.07292017,76377.0,76376.0,0.065429]
[1731158861189,0.41539933,76379.0,76378.0,0.065427]
[1731158861391,0.48691949,76379.0,76378.0,0.065427]
[1731158861587,0.55234649,76379.0,76378.0,0.065427]
[1731158870689,0.55234649,76379.0,76378.0,0.1046747]
[1731158872594,0.55234649,76379.0,76378.0,0.065427]
[1731158877391,0.19154649,76379.0,76378.0,0.065427]
[1731158877599,0.55234649,76379.0,76378.0,0.065427]
[1731158879187,0.47942632,76379.0,76378.0,0.065427]
[1731158879388,0.55234649,76379.0,76378.0,0.065427]
[1731158888400,0.19154649,76379.0,76378.0,0.065427]
[1731158898509,0.11862632,76379.0,76378.0,0.065427]
[1731158906923,0.05319932,76379.0,76376.0,0.03928303]
[1731158907112,0.065428,76377.0,76376.0,0.03928303]
[1731158907308,0.065429,76376.0,76375.0,0.10471303]
[1731158907622,0.13834917,76376.0,76375.0,0.10471303]
[1731158908913,0.13834917,76376.0,76375.0,0.06543]
[1731158909326,0.07292017,76376.0,76372.0,0.06542813]
[1731158909522,0.065433,76371.0,76370.0,0.065434]
[1731158909822,0.13835317,76371.0,76370.0,0.065434]
[1731158910023,0.13835317,76371.0,76367.0,0.06542813]
[1731158910024,0.07292017,76371.0,76367.0,0.06542813]
[1731158910214,0.065437,76367.0,76366.0,0.06542813]
[1731158910422,0.13835717,76367.0,76366.0,0.06542813]
[1731158911210,0.13835717,76367.0,76366.0,0.13086613]
[1731158911625,0.13835717,76367.0,76366.0,0.065438]
[1731158913021,0.13835717,76367.0,76366.0,0.13086613]
[1731158913316,0.13835717,76367.0,76366.0,0.065438]
[1731158922213,0.13835717,76367.0,76366.0,0.11777393]
[1731158922214,0.07292017,76367.0,76366.0,0.11777393]
[1731158922421,0.07292017,76367.0,76366.0,0.065438]
[1731158923930,0.07292017,76367.0,76366.0,0.13086613]
[1731158924232,0.07292017,76367.0,76366.0,0.065438]
[1731158924528,0.07292017,76367.0,76366.0,0.13086613]
[1731158924826,0.3669,76373.0,76366.0,0.08635282]
[1731158925025,0.0061,76373.0,76372.0,0.065433]
[1731158925227,0.07292017,76375.0,76374.0,0.065431]
[1731158926826,0.0061,76379.0,76378.0,0.065427]
[1731158927035,0.50054618,76380.0,76379.0,0.065427]
[1731158927326,0.55082132,76380.0,76379.0,0.065427]
[1731158928229,0.43372017,76380.0,76379.0,0.065427]
[1731158928728,0.3608,76380.0,76379.0,0.065427]
[1731158929032,0.0061,76385.0,76384.0,0.065422]
[1731158929229,0.16884406,76386.0,76385.0,0.065421]
[1731158929427,0.16884406,76386.0,76385.0,0.11772376]
[1731158929828,0.16884406,76386.0,76385.0,0.065421]
[1731158930332,0.16884406,76386.0,76385.0,0.11772538]
[1731158930529,0.16884406,76386.0,76385.0,0.065421]
[1731158932334,0.23426506,76386.0,76385.0,0.10463441]
[1731158932836,0.23426506,76386.0,76385.0,0.065421]
[1731158935329,0.16884406,76386.0,76382.0,0.03921341]
[1731158935526,0.065423,76383.0,76382.0,0.10463741]
[1731158935842,0.065423,76383.0,76382.0,0.065424]
[1731158936142,0.065423,76383.0,76382.0,0.10462731]
[1731158939047,0.065423,76383.0,76382.0,0.065424]
[1731158943032,0.16884406,76386.0,76380.0,0.03919737]
[1731158943230,0.16884406,76386.0,76385.0,0.065421]
[1731158943428,0.23426506,76386.0,76385.0,0.065421]
[1731158948941,0.36220001,76389.0,76386.0,0.065421]
[1731158949146,0.0061,76391.0,76385.0,0.07292017]
[1731158949147,0.3669,76391.0,76385.0,0.07292017]
[1731158949348,0.3669,76391.0,76390.0,0.065417]
[1731158949549,0.43372017,76391.0,76390.0,0.065417]
[1731158951460,0.43372017,76391.0,76390.0,0.13833717]
[1731158951461,0.3608,76391.0,76390.0,0.13833717]
[1731158951760,0.3608,76391.0,76390.0,0.17753391]
[1731158952053,0.07292017,76394.0,76390.0,0.17753391]
[1731158952054,0.07292017,76394.0,76390.0,0.07292017]
[1731158952355,0.07292017,76394.0,76392.0,0.03919647]
[1731158952753,0.07292017,76394.0,76393.0,0.03919647]
[1731158953148,0.07292017,76394.0,76392.0,0.10461147]
[1731158953655,0.07292017,76394.0,76380.0,0.15139483]
[1731158953656,0.07292017,76394.0,76391.0,0.03919647]
[1731158953853,0.07292017,76394.0,76388.0,0.05230438]
[1731158953854,0.065414,76394.0,76390.0,0.03919647]
[1731158954065,0.07292017,76391.0,76388.0,0.065419]
[1731158954845,0.065414,76394.0,76388.0,0.065419]
[1731158955557,0.07292017,76389.0,76388.0,0.065419]
[1731158958366,0.07292017,76389.0,76388.0,0.10461547]
[1731158958555,0.07292017,76389.0,76388.0,0.065419]
[1731158961576,0.07292017,76389.0,76388.0,0.11772338]
[1731158962655,0.07292017,76389.0,76388.0,0.065419]
[1731158963056,0.07292017,76389.0,76388.0,0.11772338]
[1731158966663,0.07292017,76389.0,76388.0,0.065419]
[1731158967060,0.07292017,76389.0,76388.0,0.11769259]
[1731158967568,0.07292017,76389.0,76388.0,0.065419]
[1731158967967,0.07292017,76389.0,76388.0,0.11769641]
[1731158968469,0.07292017,76389.0,76388.0,0.065419]
[1731158969058,0.07292017,76389.0,76388.0,0.11770104]
[1731158969459,0.07292017,76389.0,76388.0,0.065419]
[1731158973060,0.07292017,76393.0,76392.0,0.065415]
[1731158973874,0.07292017,76393.0,76392.0,0.11771246]
[1731158976174,0.07292017,76393.0,76392.0,0.065415]
[1731158977466,0.07292017,76393.0,76392.0,0.10465132]
[1731158977866,0.05351283,76396.0,76395.0,0.065413]
[1731158978075,0.42773,76398.0,76395.0,0.065413]
[1731158978279,0.07292017,76396.0,76395.0,0.065413]
[1731158979071,0.47752003,76398.0,76395.0,0.065413]
[1731158979269,0.07292017,76396.0,76395.0,0.065413]
[1731158979966,0.07292017,76396.0,76394.0,0.03923632]
[1731158980166,0.07292017,76396.0,76395.0,0.065413]
[1731158984071,0.07292017,76396.0,76395.0,0.11771046]
[1731158985675,0.07292017,76396.0,76395.0,0.065413]
[1731158986579,0.07292017,76396.0,76395.0,0.11771046]
[1731158991177,0.07292017,76396.0,76395.0,0.065413]
[1731158992076,0.07292017,76396.0,76395.0,0.10467967]
[1731158992272,0.07292017,76396.0,76395.0,0.065413]
[1731158992470,0.065411,76397.0,76396.0,0.065412]
[1731158992688,0.13833117,76397.0,76396.0,0.10467857]
[1731158992982,0.13833117,76397.0,76396.0,0.065412]
[1731158993577,0.13833117,76397.0,76396.0,0.10467857]
[1731158993979,0.13833117,76397.0,76396.0,0.065412]
[1731158994176,0.13833117,76397.0,76396.0,0.10467857]
[1731158994982,0.13833117,76397.0,76396.0,0.065412]
[1731158995577,0.065411,76397.0,76396.0,0.065412]
[1731158995777,0.13833117,76397.0,76396.0,0.065412]
[1731158995978,0.13833117,76397.0,76396.0,0.10467857]
[1731158998578,0.13833117,76397.0,76396.0,0.065412]
[1731158998780,0.13833117,76397.0,76396.0,0.1046801]
[1731158999191,0.13833117,76397.0,76396.0,0.11776498]
[1731158999590,0.065411,76397.0,76396.0,0.11776498]
[1731158999789,0.13833117,76397.0,76396.0,0.065412]
[1731159000585,0.13833117,76397.0,76396.0,0.11776498]
[1731159000993,0.13833117,76397.0,76396.0,0.065412]
[1731159004088,0.13833117,76397.0,76396.0,0.11776498]
[1731159004282,0.13833117,76397.0,76396.0,0.065412]
[1731159004785,0.13833117,76397.0,76396.0,0.11776498]
[1731159005288,0.13833117,76397.0,76396.0,0.065412]
[1731159005986,0.13833117,76397.0,76396.0,0.11776498]
[1731159006193,0.13833117,76397.0,76396.0,0.065412]
[1731159006681,0.065414,76394.0,76393.0,0.03927014]
[1731159006881,0.065414,76394.0,76392.0,0.10468514]
[1731159007082,0.07292017,76393.0,76392.0,0.10468514]
[1731159007279,0.065415,76393.0,76392.0,0.10468514]
[1731159007484,0.13833517,76393.0,76392.0,0.10468514]
[1731159008689,0.065415,76393.0,76392.0,0.10468514]
[1731159008893,0.07292017,76395.0,76394.0,0.065414]
[1731159009296,0.07292017,76395.0,76394.0,0.10468093]
[1731159010385,0.07292017,76395.0,76394.0,0.065414]
[1731159011196,0.07292017,76395.0,76394.0,0.10467909]
[1731159012505,0.07292017,76395.0,76394.0,0.065414]
[1731159013590,0.13833317,76395.0,76394.0,0.065414]
[1731159014200,0.13833317,76395.0,76394.0,0.11776698]
[1731159014497,0.13833317,76395.0,76394.0,0.11758542]
[1731159015603,0.13833317,76395.0,76394.0,0.16994152]
[1731159020010,0.13833317,76395.0,76394.0,0.11758542]
[1731159023505,0.13833317,76395.0,76394.0,0.1568524]
[1731159025317,0.13833317,76395.0,76394.0,0.11758542]
[1731159029514,0.13833317,76395.0,76394.0,0.16994142]
[1731159036413,0.065413,76395.0,76394.0,0.11758542]
[1731159036626,0.065413,76395.0,76394.0,0.16994142]
[1731159036821,0.13833317,76395.0,76394.0,0.16994142]
[1731159038920,0.13833317,76395.0,76394.0,0.065414]
[1731159040420,0.49913317,76395.0,76394.0,0.065414]
[1731159041327,0.426213,76395.0,76394.0,0.065414]
[1731159041522,0.49913317,76395.0,76394.0,0.065414]
[1731159042529,0.426213,76395.0,76394.0,0.11777]
[1731159042730,0.49913317,76395.0,76394.0,0.11777]
[1731159043029,0.49913317,76395.0,76394.0,0.065414]
[1731159043425,0.49913317,76395.0,76394.0,0.11777]
[1731159044317,0.49913317,76395.0,76394.0,0.065414]
[1731159044723,0.49913317,76395.0,76394.0,0.03926969]
[1731159044724,0.57205334,76395.0,76394.0,0.03926969]
[1731159044921,0.70342352,76395.0,76391.0,0.03926969]
[1731159045122,0.065415,76393.0,76390.0,0.03926969]
[1731159045418,0.07292017,76391.0,76387.0,0.0061]
[1731159045622,0.07292017,76391.0,76385.0,0.052356]
[1731159045825,0.07292017,76391.0,76383.0,0.065423]
[1731159045826,0.07292017,76386.0,76383.0,0.065423]
[1731159046224,0.07292017,76386.0,76385.0,0.05235457]
[1731159046535,0.07292017,76386.0,76384.0,0.05235457]
[1731159047330,0.12488245,76386.0,76384.0,0.05235457]
[1731159048433,0.12488245,76386.0,76383.0,0.11777757]
[1731159049032,0.12488245,76386.0,76384.0,0.05235457]
[1731159049239,0.12488245,76386.0,76383.0,0.11777757]
[1731159049923,0.12488245,76386.0,76383.0,0.065423]
[1731159051040,0.19030345,76386.0,76383.0,0.065423]
[1731159051542,0.19030345,76386.0,76383.0,0.13084075]
[1731159052046,0.12488245,76386.0,76383.0,0.06541775]